bitfinex-derivatives/quotes_ETHF0:USTF0_20241104
["timestamp","ask_amount","ask_price","bid_price","bid_amount"]
[1730729005510,0.40715,2457.7,2457.6,0.40715]
[1730729005711,0.40714,2457.7,2457.6,0.40715]
[1730729005905,0.40714,2457.7,2457.4,3.6663]
[1730729006114,4.22555,2458.0,2457.5,0.40718]
[1730729006411,0.40714,2457.7,2457.6,0.40715]
[1730729006613,3.2078,2458.0,2457.4,3.6663]
[1730729006802,3.2078,2458.0,2457.6,0.40715]
[1730729007109,0.40717,2457.6,2457.5,0.40717]
[1730729007511,0.40715,2457.7,2457.6,0.40716]
[1730729007804,0.40717,2457.6,2457.5,0.40717]
[1730729008106,4.22567,2457.7,2457.1,3.2078]
[1730729008311,3.2078,2457.4,2457.0,0.8967]
[1730729008508,3.2078,2457.4,2457.0,0.439]
[1730729008509,0.40724,2457.1,2457.0,0.439]
[1730729008712,47.921208,2457.1,2456.5,1.05611513]
[1730729008912,0.40732,2456.7,2456.5,0.40733]
[1730729009119,48.939358,2457.1,2456.4,0.439]
[1730729009120,0.4547,2457.0,2456.4,0.439]
[1730729009308,0.40732,2456.7,2456.5,0.40734]
[1730729009514,1.47287,2457.0,2456.4,0.439]
[1730729009515,0.40734,2456.5,2456.4,0.439]
[1730729009814,8.139458,2456.8,2455.9,1.0186]
[1730729010020,0.40735,2456.5,2456.3,0.40737]
[1730729010207,0.40736,2456.4,2456.2,0.40738]
[1730729010514,0.40739,2456.3,2456.1,0.8464]
[1730729011011,0.40739,2456.3,2455.8,0.40746]
[1730729011215,0.40739,2456.2,2456.0,0.40743]
[1730729011604,0.40739,2456.3,2456.1,0.4074]
[1730729011818,3.2078,2456.4,2455.9,0.4395]
[1730729012211,0.4074,2456.2,2456.0,0.40742]
[1730729013013,3.2078,2456.4,2455.9,0.4395]
[1730729013219,0.4073,2456.8,2456.6,0.40733]
[1730729013518,3.2078,2456.9,2456.8,0.40729]
[1730729016523,3.2078,2457.2,2456.6,3.2078]
[1730729016816,0.4072,2457.4,2456.9,3.2078]
[1730729017010,3.2078,2457.5,2457.3,0.40721]
[1730729017210,3.61499,2457.5,2457.3,0.40721]
[1730729017411,3.61499,2457.5,2456.9,3.2078]
[1730729017412,3.2078,2457.5,2456.9,3.2078]
[1730729017615,0.4072,2457.4,2457.2,0.40722]
[1730729017925,3.2078,2457.5,2457.4,0.40719]
[1730729018317,40.8,2457.7,2456.9,4.22599]
[1730729018318,40.8,2457.7,2457.1,0.9006]
[1730729018818,41.20714,2457.7,2457.2,4.6331]
[1730729019118,3.2078,2457.8,2457.2,4.6331]
[1730729019119,3.2078,2457.8,2457.7,0.40714]
[1730729019512,40.8,2457.8,2457.7,0.40714]
[1730729019715,3.2078,2458.1,2457.3,1.44033]
[1730729020020,3.2078,2458.1,2457.5,3.2078]
[1730729020321,0.40712,2457.9,2457.7,0.40714]
[1730729020514,40.8,2458.0,2457.5,3.2078]
[1730729020713,0.40715,2457.7,2457.6,0.40716]
[1730729020919,41.81776,2458.0,2457.5,3.2078]
[1730729020920,0.40716,2457.6,2457.5,3.2078]
[1730729021217,0.40715,2457.7,2457.5,3.61497]
[1730729021413,0.4293,2457.9,2457.5,3.61497]
[1730729021619,0.40715,2457.7,2457.5,3.2078]
[1730729021824,40.8,2458.0,2457.5,3.2078]
[1730729022120,40.8,2458.0,2457.6,0.40715]
[1730729022121,0.40714,2457.8,2457.6,0.40715]
[1730729022516,0.40715,2457.7,2457.5,3.2078]
[1730729022716,40.8,2458.0,2457.7,0.40714]
[1730729022717,0.40712,2457.9,2457.7,0.40714]
[1730729023020,40.8,2458.0,2457.5,4.22574]
[1730729023217,40.8,2458.0,2457.9,0.40711]
[1730729023717,41.20709,2458.0,2457.9,0.40711]
[1730729023913,3.2078,2458.1,2458.0,0.40709]
[1730729024115,1.56143525,2458.3,2457.9,3.2078]
[1730729024318,42.36143525,2458.3,2458.2,0.40706]
[1730729024822,1.56143525,2458.3,2458.2,4.47506]
[1730729025124,2.60256302,2458.6,2458.5,0.40701]
[1730729025326,0.88488845,2458.6,2458.5,4.320418]
[1730729025620,0.88488845,2458.6,2458.5,8.387618]
[1730729026327,0.88488845,2458.6,2458.5,4.47421]
[1730729028021,0.40694,2459.0,2458.6,0.40699]
[1730729028220,3.2078,2459.1,2458.4,3.6679]
[1730729028428,3.61472,2459.1,2458.7,0.40697]
[1730729028731,3.61472,2459.1,2458.8,0.40696]
[1730729029022,0.40693,2459.0,2458.7,0.40697]
[1730729029432,0.40693,2459.0,2458.5,8.47860731]
[1730729029433,0.40692,2459.1,2458.8,0.40695]
[1730729029622,40.8,2459.2,2458.6,0.4249]
[1730729030022,0.40694,2459.0,2458.7,0.40697]
[1730729030218,0.40696,2458.8,2458.7,3.2078]
[1730729030729,0.40695,2458.9,2458.7,3.2078]
[1730729031224,0.40694,2459.0,2458.7,3.61477]
[1730729031424,0.40695,2458.9,2458.7,3.61477]
[1730729031629,0.40695,2458.9,2458.7,3.2078]
[1730729032127,0.40695,2458.9,2458.6,0.40699]
[1730729032428,0.40698,2458.8,2458.5,0.40701]
[1730729032625,3.2078,2459.1,2458.3,3.61484]
[1730729032626,0.40702,2458.5,2458.3,3.61484]
[1730729032830,0.407,2458.6,2458.3,3.61484]
[1730729033025,0.4424,2458.8,2458.3,3.2078]
[1730729033228,0.40703,2458.4,2458.3,3.2078]
[1730729034023,11.189208,2458.4,2457.4,3.2078]
[1730729034227,0.40709,2458.1,2457.8,0.40712]
[1730729034420,3.2078,2458.3,2457.6,8.57601385]
[1730729034624,3.2078,2458.3,2457.9,0.40711]
[1730729034823,0.40702,2458.5,2458.2,0.40706]
[1730729035027,0.40702,2458.5,2458.3,0.40704]
[1730729035329,40.8,2458.4,2457.9,1.01777]
[1730729035531,41.20703,2458.4,2458.2,0.40705]
[1730729035734,0.40702,2458.5,2458.2,0.40705]
[1730729036030,0.40702,2458.5,2458.0,0.8762]
[1730729036329,41.20702,2458.5,2458.2,0.40704]
[1730729036535,0.40703,2458.4,2458.0,0.8762]
[1730729036723,40.8,2458.5,2458.2,0.40705]
[1730729036924,41.20703,2458.5,2458.2,0.40705]
[1730729037321,0.40703,2458.4,2458.2,0.40705]
[1730729037524,41.20702,2458.5,2458.3,0.40704]
[1730729038426,40.8,2458.5,2458.0,0.8762]
[1730729038727,0.40699,2458.7,2458.1,13.63288812]
[1730729038925,3.2078,2458.9,2458.5,0.407]
[1730729039120,0.40699,2458.7,2458.5,0.40701]
[1730729040217,40.8,2458.8,2458.1,9.56488812]
[1730729040428,0.40699,2458.7,2458.5,0.40701]
[1730729041427,40.8,2458.8,2458.7,0.40698]
[1730729041628,3.6147,2459.2,2458.7,4.0672]
[1730729041933,3.6147,2459.2,2459.0,0.40692]
[1730729042229,44.4147,2459.2,2459.0,0.40692]
[1730729042633,0.40691,2459.1,2458.9,0.40693]
[1730729043026,44.0078,2459.2,2458.8,0.4616]
[1730729043431,44.4147,2459.2,2459.0,0.40692]
[1730729043631,3.2078,2459.2,2459.1,0.40691]
[1730729044026,3.2078,2459.2,2459.1,4.47331]
[1730729044436,3.6147,2459.2,2459.1,4.0664]
[1730729044738,3.2078,2459.2,2458.8,0.4616]
[1730729044927,4.22506,2459.2,2458.6,3.2078]
[1730729045239,3.2078,2458.8,2458.3,0.4464]
[1730729045439,3.2078,2458.5,2458.0,0.4464]
[1730729045729,0.40708,2458.1,2458.0,0.4464]
[1730729046037,4.22535,2458.5,2457.8,0.4448]
[1730729046038,0.40709,2458.0,2457.8,0.40712]
[1730729046226,3.2078,2458.2,2457.6,3.2078]
[1730729046428,3.2078,2458.2,2458.1,0.40708]
[1730729046628,44.0078,2458.2,2458.1,0.40708]
[1730729046829,44.0078,2458.2,2457.8,0.40713]
[1730729047131,44.0078,2458.2,2458.1,0.40708]
[1730729047742,44.0078,2458.2,2457.7,1.01787]
[1730729047743,44.41487,2458.2,2458.0,0.40709]
[1730729048425,44.0078,2458.2,2457.6,3.2078]
[1730729048631,45.02547,2458.2,2457.6,3.2078]
[1730729048831,3.2078,2457.9,2457.2,0.4448]
[1730729049031,3.61496,2457.6,2457.4,0.40718]
[1730729049231,3.2078,2457.6,2457.2,0.4448]
[1730729049530,3.2078,2457.6,2457.5,0.40718]
[1730729049736,3.61492,2457.9,2457.6,0.40714]
[1730729049932,3.2078,2457.9,2457.2,0.4448]
[1730729050137,0.40714,2457.8,2457.5,0.40716]
[1730729050341,3.2078,2457.9,2457.5,0.40716]
[1730729050541,3.2078,2457.9,2457.2,0.4448]
[1730729050839,3.2078,2457.9,2457.4,0.40719]
[1730729050840,0.40717,2457.6,2457.4,0.40719]
[1730729051434,0.40718,2457.5,2457.3,0.40721]
[1730729051628,3.2078,2457.6,2457.2,0.4448]
[1730729051834,0.4072,2457.4,2457.2,0.85202]
[1730729052041,0.4072,2457.4,2457.2,0.40722]
[1730729052241,3.61497,2457.6,2457.4,0.40718]
[1730729052433,3.2078,2457.6,2457.4,0.40718]
[1730729052639,3.2078,2457.6,2457.5,0.40718]
[1730729053437,3.2078,2457.6,2457.5,4.47598]
[1730729053640,3.61497,2457.6,2457.4,0.40719]
[1730729054336,3.2078,2457.6,2457.3,0.453]
[1730729054638,3.2078,2457.6,2457.5,0.40718]
[1730729056041,3.2078,2458.0,2457.9,0.40711]
[1730729056227,3.2078,2458.0,2457.8,0.40712]
[1730729056228,3.6149,2458.0,2457.8,0.40712]
[1730729056432,3.2078,2458.0,2457.9,0.40711]
[1730729056634,0.4638,2458.1,2458.0,0.40709]
[1730729056828,0.40707,2458.2,2458.0,0.40709]
[1730729057029,3.2078,2458.3,2458.2,0.40706]
[1730729058143,3.2078,2458.3,2458.2,4.47506]
[1730729058544,3.2078,2458.3,2458.2,0.40706]
[1730729059132,3.2078,2458.8,2458.7,0.40698]
[1730729059635,1.29574,2459.0,2458.8,0.40696]
[1730729059842,3.61472,2459.1,2458.9,0.40695]
[1730729060239,3.2078,2459.1,2458.5,1.01753]
[1730729060543,0.40697,2458.8,2458.6,0.40699]
[1730729060847,3.2078,2459.1,2459.0,0.40693]
[1730729061050,3.2078,2459.1,2458.6,1.01749]
[1730729061447,3.2078,2459.1,2459.0,0.40693]
[1730729061639,0.40689,2459.3,2458.7,1.01744]
[1730729061835,3.2078,2459.4,2458.7,1.01744]
[1730729062040,41.20689,2459.3,2458.7,4.22524]
[1730729062347,41.20689,2459.3,2459.1,0.4069]
[1730729062545,3.2078,2459.4,2459.3,0.40688]
[1730729063144,44.0078,2459.4,2459.1,0.4281]
[1730729063445,0.40689,2459.3,2459.1,0.83501]
[1730729063740,44.0078,2459.4,2458.5,8.54227052]
[1730729063741,49.09137,2459.4,2458.5,1.05934841]
[1730729063952,3.2078,2459.0,2458.4,2.59534841]
[1730729064248,3.2078,2459.0,2458.4,1.536]
[1730729064437,3.2078,2459.0,2458.3,0.4281]
[1730729064641,0.40704,2458.4,2458.1,0.40706]
[1730729064841,3.2078,2458.6,2458.0,0.40708]
[1730729065043,3.2078,2458.3,2458.0,0.40708]
[1730729065246,3.2078,2458.3,2458.1,0.40707]
[1730729065445,0.4567,2458.5,2457.9,2.4192]
[1730729065752,0.4567,2458.5,2458.1,0.40707]
[1730729065936,0.40704,2458.4,2458.1,0.40707]
[1730729066141,0.4567,2458.5,2457.9,2.4192]
[1730729066547,0.40706,2458.2,2458.0,0.40709]
[1730729067052,3.61485,2458.3,2458.0,0.40709]
[1730729067246,3.61485,2458.3,2458.1,0.40706]
[1730729067443,0.40707,2458.2,2458.0,0.40709]
[1730729068046,3.2078,2458.3,2457.9,0.4281]
[1730729068355,3.2078,2458.0,2457.6,0.40715]
[1730729068544,0.40714,2457.7,2457.5,0.40717]
[1730729068846,40.8,2457.9,2457.8,0.40713]
[1730729070547,3.2078,2458.3,2457.8,4.0688]
[1730729070747,0.4071,2458.0,2457.8,0.40712]
[1730729071049,0.4071,2458.0,2457.7,0.40713]
[1730729071555,0.40707,2458.2,2458.0,0.40709]
[1730729072153,41.20708,2458.1,2457.9,0.4071]
[1730729072652,40.8,2458.1,2458.0,0.40709]
[1730729073254,1.04059029,2458.8,2458.0,4.068]
[1730729073457,3.2078,2458.5,2458.1,0.4305]
[1730729073744,40.8,2458.4,2458.1,1.28827]
[1730729073949,41.20704,2458.4,2458.2,0.40706]
[1730729074154,41.20704,2458.4,2458.1,1.28827]
[1730729074349,41.20704,2458.4,2458.1,0.8812]
[1730729074652,40.8,2458.4,2458.1,0.4507]
[1730729074852,0.40705,2458.3,2458.1,0.4507]
[1730729075151,0.40705,2458.3,2458.1,0.85777]
[1730729075445,40.8,2458.4,2458.1,0.4507]
[1730729076153,0.40705,2458.3,2458.1,0.85777]
[1730729076949,0.40706,2458.3,2458.1,0.40708]
[1730729077151,0.40706,2458.2,2458.0,0.40708]
[1730729078150,0.40706,2458.2,2457.8,3.2078]
[1730729078151,0.4621,2458.3,2457.8,3.2078]
[1730729078353,0.4621,2458.3,2458.0,0.40709]
[1730729078554,3.2078,2458.2,2457.8,3.2078]
[1730729078950,3.2078,2458.2,2458.1,0.40708]
[1730729079549,0.40705,2458.3,2458.1,0.40708]
[1730729079958,3.61487,2458.2,2458.0,0.40708]
[1730729080144,3.61487,2458.2,2457.8,3.2078]
[1730729080342,3.61487,2458.2,2458.1,0.40708]
[1730729080558,3.2078,2458.2,2458.1,0.40708]
[1730729081950,44.84814,2458.4,2458.2,0.40705]
[1730729082443,44.4411,2458.4,2458.2,0.40705]
[1730729082853,3.2078,2458.4,2458.3,0.40704]
[1730729083157,3.2078,2458.4,2457.8,3.90880069]
[1730729083158,0.40701,2458.6,2458.0,9.70243244]
[1730729083349,3.2078,2458.7,2458.2,1.01766]
[1730729083652,3.2078,2458.7,2458.6,0.40699]
[1730729084461,3.2078,2458.7,2458.4,1.01757]
[1730729084462,40.8,2458.9,2458.4,1.01757]
[1730729084651,0.40697,2458.8,2458.7,0.40696]
[1730729084850,0.40697,2458.8,2458.4,1.01757]
[1730729084851,40.8,2458.9,2458.8,0.40696]
[1730729085050,41.20695,2458.9,2458.8,0.40696]
[1730729085252,40.8,2458.9,2458.5,1.01753]
[1730729085453,40.8,2458.9,2458.3,2.33199]
[1730729085454,0.40697,2458.8,2458.7,0.40697]
[1730729085754,1.01743,2458.8,2458.3,0.8855]
[1730729085944,3.61484,2458.4,2458.3,0.40704]
[1730729086659,3.2078,2458.4,2457.9,1.9885]
[1730729087269,0.40708,2458.1,2458.0,0.40708]
[1730729087446,0.40705,2458.3,2458.2,0.40706]
[1730729087650,0.40707,2458.2,2457.9,0.4525]
[1730729087959,3.2078,2458.4,2457.9,0.4525]
[1730729088160,3.61484,2458.4,2458.2,0.40705]
[1730729088659,0.40706,2458.3,2457.9,1.47028]
[1730729088852,0.40706,2458.3,2458.2,0.40706]
[1730729089158,0.40706,2458.3,2458.1,0.40706]
[1730729089454,0.40706,2458.3,2457.9,1.47028]
[1730729089661,3.2078,2458.4,2457.9,0.4525]
[1730729089860,0.40707,2458.2,2458.0,0.40708]
[1730729090157,0.40708,2458.1,2458.0,0.40708]
[1730729090754,3.2078,2458.4,2457.9,0.4525]
[1730729090959,0.40706,2458.2,2458.1,0.40708]
[1730729091560,0.40706,2458.2,2457.9,0.4525]
[1730729091762,0.40706,2458.2,2458.0,0.40708]
[1730729092260,0.40705,2458.3,2458.2,0.40706]
[1730729092561,3.2078,2458.4,2457.9,1.47028]
[1730729092562,0.40707,2458.2,2458.0,0.40708]
[1730729093161,3.2078,2458.4,2457.9,0.4525]
[1730729093358,0.40706,2458.2,2458.1,0.40707]
[1730729093559,0.40705,2458.3,2458.1,0.40707]
[1730729093760,3.61484,2458.4,2458.2,0.40705]
[1730729093956,3.2078,2458.4,2458.3,0.40704]
[1730729094162,0.4596,2458.7,2458.5,0.407]
[1730729094163,3.61479,2458.7,2458.5,0.407]
[1730729094549,0.40699,2458.6,2458.5,0.407]
[1730729094775,3.2078,2458.7,2458.3,0.4386]
[1730729094956,3.2078,2458.7,2458.5,0.407]
[1730729095156,3.2078,2458.7,2458.3,0.4386]
[1730729095362,3.61479,2458.7,2458.6,0.40699]
[1730729095866,0.407,2458.6,2458.5,0.407]
[1730729096053,3.61479,2458.7,2458.6,0.40699]
[1730729099962,3.61479,2458.7,2458.5,0.4509]
[1730729100267,3.61479,2458.7,2458.6,0.40699]
[1730729101056,0.40697,2458.8,2458.5,0.4509]
[1730729101260,40.8,2458.9,2458.5,0.4509]
[1730729101563,3.2078,2458.7,2458.6,0.40699]
[1730729101962,3.61478,2458.7,2458.6,0.40699]
[1730729102653,3.61478,2458.7,2458.4,1.01757]
[1730729102654,8.29247,2458.7,2458.0,2.0810852]
[1730729102860,3.61485,2458.3,2458.2,0.40706]
[1730729103461,3.2078,2458.3,2458.2,0.40706]
[1730729104459,3.2078,2458.3,2458.0,0.4321]
[1730729104664,0.40708,2458.1,2458.0,0.4321]
[1730729104866,0.40713,2457.8,2457.7,0.40714]
[1730729105164,1.01778,2457.9,2457.5,0.85006]
[1730729105466,3.2078,2457.7,2457.5,0.4429]
[1730729105764,3.2078,2458.2,2457.5,0.4429]
[1730729105963,0.40714,2457.8,2457.6,0.40715]
[1730729106159,3.2078,2457.9,2457.8,0.40713]
[1730729106361,1.0432843,2458.4,2458.3,0.40704]
[1730729106561,4.6982843,2458.5,2458.3,0.40704]
[1730729106761,4.06202,2458.5,2458.3,0.40704]
[1730729107164,3.655,2458.5,2457.9,1.90808]
[1730729107371,0.40703,2458.4,2458.3,0.40704]
[1730729107866,0.40703,2458.4,2458.2,0.40705]
[1730729108068,0.40703,2458.4,2458.3,0.40704]
[1730729108269,3.655,2458.5,2458.3,0.40704]
[1730729108462,3.655,2458.5,2458.1,1.0177]
[1730729108665,1.0432843,2458.7,2458.2,1.01766]
[1730729108868,1.0432843,2458.8,2458.3,1.0176]
[1730729109063,1.4502543,2458.8,2458.4,0.4224]
[1730729109260,1.0432843,2458.8,2458.5,1.01754]
[1730729109571,44.0078,2458.9,2458.8,0.40696]
[1730729109572,45.0510843,2458.9,2458.8,0.40696]
[1730729109780,44.0078,2458.9,2458.8,0.40696]
[1730729110070,3.2078,2458.9,2458.8,0.40696]
[1730729110367,1.0432843,2459.2,2458.8,5.0846]
[1730729110573,4.6579443,2459.4,2458.9,0.4224]
[1730729110759,4.6579443,2459.4,2459.0,0.40692]
[1730729110760,0.40688,2459.3,2459.0,0.40692]
[1730729111167,3.2078,2459.4,2458.9,1.4857552]
[1730729111364,3.2078,2459.4,2459.2,0.40689]
[1730729111570,44.0078,2459.4,2459.2,0.40689]
[1730729112075,3.61467,2459.4,2459.1,0.4069]
[1730729112276,3.2078,2459.4,2459.3,0.40688]
[1730729112470,3.2078,2459.4,2459.0,2.0806852]
[1730729112471,3.2078,2459.4,2459.2,0.40688]
[1730729112773,3.2078,2459.4,2459.3,0.40688]
[1730729112973,3.2078,2459.4,2459.1,0.453]
[1730729113473,3.2078,2459.4,2459.3,0.40688]
[1730729113970,3.2078,2459.4,2459.1,0.453]
[1730729114573,3.2078,2459.4,2458.9,0.4224]
[1730729114871,0.40694,2459.0,2458.6,0.4363]
[1730729115169,3.2078,2459.1,2458.8,0.444]
[1730729115473,0.40693,2459.0,2458.8,0.85096]
[1730729115879,3.2078,2459.1,2458.8,0.85096]
[1730729116073,0.40695,2458.9,2458.8,0.444]
[1730729116375,0.40693,2459.0,2458.8,0.85095]
[1730729116567,4.2510843,2459.4,2458.9,7.97520069]
[1730729116774,3.2078,2459.4,2458.9,4.92616069]
[1730729116964,3.2078,2459.4,2459.3,0.40688]
[1730729117372,41.20683,2459.6,2459.4,0.40685]
[1730729117676,40.8,2459.6,2459.5,0.40685]
[1730729117870,40.8,2459.6,2459.1,1.45857]
[1730729117871,40.8,2459.6,2459.4,0.40685]
[1730729118066,40.8,2459.6,2459.5,0.40685]
[1730729118270,40.8,2459.6,2459.4,0.40686]
[1730729118271,41.20683,2459.6,2459.4,0.40686]
[1730729118465,40.8,2459.6,2459.3,0.444]
[1730729118776,40.8,2459.6,2459.4,0.40686]
[1730729118777,0.40684,2459.6,2459.4,0.40686]
[1730729118979,3.2078,2459.7,2459.3,0.444]
[1730729118980,3.61462,2459.7,2459.3,0.444]
[1730729119175,0.40683,2459.6,2459.4,0.40685]
[1730729119778,44.0078,2459.7,2459.3,0.444]
[1730729120265,44.0078,2459.7,2459.6,0.40683]
[1730729120668,0.4295,2460.0,2459.8,0.40679]
[1730729121181,0.4295,2460.0,2459.5,3.90880069]
[1730729121374,0.4295,2460.0,2459.9,0.40678]
[1730729122074,44.0078,2460.1,2460.0,0.40676]
[1730729122075,3.2078,2460.1,2460.0,0.40676]
[1730729122379,3.2078,2460.1,2460.0,4.47156]
[1730729122573,3.2078,2460.1,2460.0,5.36496]
[1730729123272,3.2078,2460.1,2460.0,4.5235]
[1730729123581,0.40677,2460.0,2459.8,0.40679]
[1730729123874,0.40677,2460.0,2459.1,1.9714552]
[1730729123875,1.01692,2460.0,2458.7,6.56718869]
[1730729124074,3.2078,2459.3,2458.7,0.4424]
[1730729124270,0.40694,2459.0,2458.8,0.40696]
[1730729124676,3.2078,2459.0,2458.7,0.4424]
[1730729125083,0.40695,2458.9,2458.7,0.84937]
[1730729125277,3.2078,2459.0,2458.9,0.40695]
[1730729125478,3.2078,2459.0,2458.8,0.40696]
[1730729125880,3.2078,2459.0,2458.9,0.40695]
[1730729126081,3.2078,2459.0,2458.8,0.40695]
[1730729126281,0.4275,2459.2,2458.7,0.4424]
[1730729126474,0.4275,2459.2,2458.9,0.40694]
[1730729126475,0.40692,2459.1,2458.9,0.40694]
[1730729126874,0.83441,2459.2,2458.9,0.40694]
[1730729127082,0.83441,2459.2,2459.0,0.40693]
[1730729127387,0.40691,2459.1,2458.9,0.40693]
[1730729128277,0.83441,2459.2,2458.7,0.4424]
[1730729128476,0.83441,2459.2,2459.0,0.40692]
[1730729128877,0.4275,2459.2,2459.1,0.40691]
[1730729129280,41.2275,2459.2,2459.1,0.40691]
[1730729129486,41.2275,2459.2,2458.7,0.4424]
[1730729129781,3.2078,2459.0,2458.6,3.2078]
[1730729129992,3.2078,2459.0,2458.6,3.61479]
[1730729129993,0.40697,2458.8,2458.6,3.61479]
[1730729130179,3.2078,2459.0,2458.6,3.2078]
[1730729130484,0.40698,2458.7,2458.6,3.2078]
[1730729131380,0.40697,2458.8,2458.6,3.61478]
[1730729131792,3.61474,2459.0,2458.8,0.40696]
[1730729132093,3.2078,2459.0,2458.6,3.2078]
[1730729132388,3.2078,2459.0,2458.9,0.40695]
[1730729132590,0.4418,2459.4,2459.2,0.4069]
[1730729132591,3.2078,2459.3,2459.2,0.4069]
[1730729133788,0.40691,2459.1,2459.0,0.4633]
[1730729133990,3.2078,2459.3,2459.0,0.4633]
[1730729134185,3.2078,2459.3,2459.2,0.4069]
[1730729134894,40.8,2459.6,2459.2,0.4069]
[1730729134895,3.6504,2459.7,2459.2,4.4733]
[1730729135082,4.05722,2459.7,2459.5,0.40684]
[1730729135287,3.6504,2459.7,2459.6,0.40683]
[1730729135486,4.05722,2459.7,2459.5,0.40684]
[1730729136090,4.05722,2459.7,2459.6,0.40683]
[1730729136295,3.6504,2459.7,2459.6,0.40683]
[1730729136483,4.05721,2459.7,2459.6,0.40683]
[1730729136791,3.6504,2459.7,2459.6,0.40683]
[1730729137096,3.2078,2459.7,2459.6,0.40683]
[1730729137595,3.61461,2459.7,2459.6,0.40683]
[1730729137987,3.2078,2459.7,2459.6,0.40683]
[1730729139291,3.2078,2459.7,2459.6,4.47243]
[1730729140290,40.8,2460.0,2459.9,0.40678]
[1730729140291,3.2078,2460.0,2459.9,0.40678]
[1730729140800,3.2078,2460.0,2459.9,4.47158]
[1730729140998,3.2078,2460.3,2460.2,0.40673]
[1730729141189,3.61452,2460.3,2460.1,0.40674]
[1730729141494,3.61452,2460.3,2460.0,0.4447]
[1730729141495,0.40673,2460.2,2460.0,0.85146]
[1730729141689,0.40673,2460.2,2459.9,0.40677]
[1730729141884,0.40675,2460.1,2459.8,1.99278]
[1730729142284,0.4388,2460.2,2459.9,0.40678]
[1730729142484,0.40674,2460.2,2459.9,0.40678]
[1730729142689,0.40674,2460.2,2460.0,0.40676]
[1730729143095,0.40674,2460.2,2459.9,0.40677]
[1730729143297,3.2078,2460.3,2459.6,0.82851]
[1730729143298,0.40679,2459.9,2459.6,0.82851]
[1730729143605,0.4303,2460.1,2459.6,0.82852]
[1730729143789,0.4068,2459.8,2459.6,0.82852]
[1730729144191,0.4303,2460.1,2459.6,0.4217]
[1730729144386,0.4303,2460.1,2459.7,0.4068]
[1730729144387,0.40677,2460.0,2459.7,0.4068]
[1730729144587,0.40678,2459.9,2459.7,0.4068]
[1730729144796,0.4303,2460.1,2459.6,0.4217]
[1730729144995,0.40677,2460.0,2459.8,0.4068]
[1730729145202,0.4303,2460.1,2459.6,0.82852]
[1730729145392,0.4303,2460.1,2459.8,0.40679]
[1730729145702,0.40681,2459.7,2459.5,1.99284]
[1730729147492,0.40681,2459.8,2459.5,1.99284]
[1730729147699,0.40682,2459.7,2459.5,1.99284]
[1730729148699,0.40682,2459.7,2459.4,0.4428]
[1730729148996,0.40686,2459.5,2459.3,0.86687]
[1730729149202,0.40686,2459.5,2458.9,8.13394069]
[1730729149203,0.40689,2459.3,2459.0,0.4303]
[1730729149400,0.40689,2459.3,2459.1,0.4069]
[1730729149588,0.4069,2459.2,2459.0,0.83722]
[1730729149790,40.8,2459.3,2459.0,0.4303]
[1730729149989,40.8,2459.3,2459.1,0.40691]
[1730729149990,41.20688,2459.3,2459.1,0.40691]
[1730729150292,3.2078,2459.4,2459.0,0.4303]
[1730729150501,0.4069,2459.2,2459.0,0.4303]
[1730729150802,41.20692,2459.1,2458.9,0.84324]
[1730729151000,40.8,2459.1,2459.0,0.40693]
[1730729151203,40.8,2459.1,2458.9,0.84323]
[1730729151402,40.8,2459.1,2459.0,0.40693]
[1730729151604,0.4069,2459.2,2459.0,0.40693]
[1730729151802,3.6336,2459.4,2458.9,1.45366]
[1730729151803,3.2078,2459.4,2458.9,1.45366]
[1730729152104,3.2078,2459.4,2459.1,0.4069]
[1730729152105,40.8,2459.3,2459.1,0.4069]
[1730729152403,40.8,2459.3,2459.2,0.4069]
[1730729152895,41.20688,2459.3,2458.9,0.4363]
[1730729153095,41.20688,2459.3,2459.1,0.4069]
[1730729153301,40.8,2459.3,2459.2,0.4069]
[1730729153894,3.2078,2459.4,2459.3,0.40688]
[1730729154099,3.2078,2459.4,2459.0,0.4545]
[1730729154407,44.0078,2459.4,2459.2,0.40688]
[1730729154601,44.0078,2459.4,2459.3,0.40688]
[1730729154907,44.0078,2459.4,2459.0,0.4545]
[1730729154908,44.41466,2459.4,2459.0,0.4545]
[1730729155096,44.41466,2459.4,2459.2,0.40689]
[1730729155601,44.41466,2459.4,2459.0,0.4545]
[1730729155602,44.0078,2459.4,2459.0,0.4545]
[1730729155811,0.40688,2459.3,2459.1,0.4069]
[1730729156309,44.0078,2459.4,2459.0,0.4545]
[1730729156500,44.0078,2459.4,2459.3,0.40688]
[1730729156909,0.4462,2459.5,2459.1,1.01728]
[1730729157113,3.6336,2459.7,2459.6,0.40683]
[1730729157114,3.2078,2459.7,2459.6,0.40683]
[1730729157312,1.4500443,2460.0,2459.8,0.40678]
[1730729157520,3.2078,2460.1,2459.7,0.40681]
[1730729157706,0.40678,2459.9,2459.7,0.40681]
[1730729157900,0.40677,2460.0,2459.8,0.40679]
[1730729158114,3.61455,2460.1,2459.9,0.40677]
[1730729158409,3.61455,2460.1,2460.0,0.40676]
[1730729158410,3.2078,2460.1,2460.0,0.40676]
[1730729158710,3.2078,2460.1,2459.8,0.40679]
[1730729158711,0.40677,2460.0,2459.8,0.40679]
[1730729158908,3.2078,2460.1,2459.6,3.17510523]